fUST/lending_fUST_20250817
["ID","MTS","AMOUNT","RATE_DAILY","PERIOD"]
[379757382,1755400243350,-480.0,0.00021179,2]
[379757384,1755400243360,-12682.46447135,0.0002118,3]
[379757386,1755400243371,-3000.0,0.0002118,2]
[379757388,1755400243381,-480.0,0.0002118,2]
[379757390,1755400243391,-480.0,0.0002118,2]
[379757392,1755400243403,-480.0,0.0002118,2]
[379757394,1755400243412,-482.05763637,0.0002118,2]
[379757396,1755400243422,-480.0,0.0002118,2]
[379757398,1755400243432,-417.15472785,0.0002118,3]
[379757400,1755400243442,-321.1,0.0002118,3]
[379757402,1755400243452,-493.44790886,0.0002118,2]
[379757404,1755400243461,-3668.11,0.0002118,2]
[379757406,1755400243471,-480.0,0.0002118,2]
[379757408,1755400243480,-462.21132165,0.0002118,3]
[379757410,1755400243489,-480.0,0.0002118,2]
[379757412,1755400243499,-1013.33,0.0002118,2]
[379757414,1755400243508,-777.82,0.0002118,2]
[379757416,1755400243518,-480.0,0.0002118,2]
[379757418,1755400243527,-215.71995163,0.0002118,3]
[379757420,1755400243537,-624.53,0.0002118,2]
[379757422,1755400243546,-480.0,0.0002118,2]
[379757424,1755400243556,-480.0,0.0002118,2]
[379757426,1755400243565,-480.0,0.0002118,2]
[379757428,1755400243576,-480.0,0.0002118,2]
[379757430,1755400243585,-480.0,0.0002118,2]
[379757432,1755400243595,-480.0,0.0002118,2]
[379757434,1755400243605,-480.0,0.0002118,2]
[379757436,1755400243615,-545.73,0.0002118,2]
[379757438,1755400243625,-480.0,0.0002118,2]
[379757440,1755400243635,-362.5807489,0.0002118,2]
[379757443,1755400243645,-480.0,0.0002118,2]
[379757445,1755400243656,-3000.0,0.0002119,2]
[379757447,1755400243665,-201.15189442,0.00021199,2]
[379757449,1755400243676,-161.0584732,0.00021199,2]
[379757451,1755400243687,-151.0,0.000212,4]
[379757453,1755400243696,-3000.0,0.000212,2]
[379757455,1755400243706,-151.0,0.000212,4]
[379757457,1755400243715,-42325.8994162,0.000212,5]
[379757459,1755400243725,-151.0,0.000212,2]
[379757460,1755400243734,-151.0,0.000212,2]
[379757462,1755400243744,-268.344502,0.000212,2]
[379757464,1755400243754,-268.344502,0.000212,2]
[379757466,1755400243763,-151.0,0.000212,2]
[379757468,1755400243772,-169.173076,0.000212,2]
[379757470,1755400243782,-169.173076,0.000212,2]
[379757472,1755400243792,-151.0,0.000212,2]
[379757475,1755400243802,-151.0,0.000212,2]
[379757477,1755400243812,-151.0,0.000212,2]
[379757479,1755400243822,-3000.0,0.0002121,2]
[379757481,1755400243832,-3000.0,0.0002122,2]
[379757483,1755400243841,-437.0,0.00021229,2]
[379757485,1755400243852,-4104.732945,0.0002123,2]
[379757487,1755400243863,-264.0,0.00021234,2]
[379757489,1755400243872,-460.0,0.00021251,2]
[379757491,1755400243881,-480.0,0.00021278,2]
[379757493,1755400243890,-480.0,0.00021278,2]
[379757495,1755400243900,-480.0,0.00021278,2]
[379757497,1755400243910,-480.0,0.00021278,2]
[379757499,1755400243919,-480.0,0.00021278,2]
[379757500,1755400243929,-548.90500141,0.00021278,2]
[379757502,1755400243939,-605.62367943,0.00021278,2]
[379757505,1755400243949,-480.0,0.00021278,2]
[379757506,1755400243958,-480.0,0.00021278,2]
[379757509,1755400243968,-4014.32,0.00021278,2]
[379757510,1755400243978,-480.0,0.00021278,2]
[379757512,1755400243988,-480.0,0.00021279,2]
[379757514,1755400243998,-480.0,0.0002128,2]
[379757516,1755400244008,-1523.43,0.0002128,2]
[379757518,1755400244017,-480.0,0.0002128,2]
[379757520,1755400244027,-480.0,0.0002128,2]
[379757522,1755400244037,-504.36,0.0002128,2]
[379757524,1755400244054,-854.0,0.00021282,2]
[379757526,1755400244064,-480.0,0.00021282,2]
[379757528,1755400244073,-151.0,0.000213,4]
[379757531,1755400244084,-182.145647,0.000213,4]
[379757533,1755400244093,-500.0,0.00021303,2]
[379757535,1755400244103,-500.0,0.00021303,2]
[379757536,1755400244113,-500.0,0.00021303,2]
[379757538,1755400244123,-500.0,0.00021303,2]
[379757540,1755400244133,-500.0,0.00021303,2]
[379757542,1755400244143,-500.71946824,0.00021303,2]
[379757544,1755400244153,-500.0,0.00021303,2]
[379757546,1755400244163,-500.0,0.00021303,2]
[379757548,1755400244172,-500.0,0.00021303,2]
[379757550,1755400244182,-501.23763847,0.00021303,2]
[379757552,1755400244192,-321.1,0.00021324,3]
[379757554,1755400244202,-398.59024176,0.00021333,2]
[379757556,1755400244212,-500.0,0.00021333,2]
[379757558,1755400244222,-34683.24338239,0.0002134,2]
[379757560,1755400244232,-151.0,0.0002134,2]
[379757562,1755400244242,-242.863872,0.0002134,2]
[379757564,1755400244251,-268.344502,0.0002134,2]
[379757566,1755400244261,-268.344502,0.0002134,2]
[379757567,1755400244270,-252.147962,0.0002134,2]
[379757569,1755400244280,-169.173076,0.0002134,2]
[379757572,1755400244291,-169.173076,0.0002134,2]
[379757573,1755400244301,-151.0,0.0002134,2]
[379757575,1755400244310,-151.0,0.0002134,2]
[379757577,1755400244320,-151.0,0.0002134,2]
[379757579,1755400244330,-500.81412488,0.00021341,2]
[379757581,1755400244339,-503.0442539,0.00021343,2]
[379757583,1755400244349,-500.99918292,0.00021343,2]
[379757585,1755400244359,-500.0,0.00021359,2]
[379757587,1755400244369,-501.67988707,0.00021359,2]
[379757589,1755400244378,-500.0,0.00021359,2]
[379757591,1755400244388,-503.84495394,0.00021359,2]
[379757593,1755400244398,-168.0,0.00021361,2]
[379757595,1755400244407,-500.0,0.00021362,2]
[379757597,1755400244417,-500.6005255,0.00021362,2]
[379757599,1755400244427,-182.145647,0.00021383,20]
[379757601,1755400244437,-500.0,0.00021398,2]
[379757603,1755400244447,-500.0,0.00021398,2]
[379757617,1755400244578,-500.0,0.00021398,2]
[379757620,1755400244589,-502.27964411,0.00021398,2]
[379757622,1755400244599,-501.2936446,0.00021398,2]
[379757623,1755400244607,-160.31078128,0.00021398,2]
[379757626,1755400244617,-500.88053432,0.00021398,2]
[379757628,1755400244627,-500.48515569,0.00021398,2]
[379757630,1755400244636,-158.2102775,0.00021398,2]
[379757632,1755400244646,-500.0,0.00021398,2]
[379757634,1755400244655,-151.0,0.000214,4]
[379757636,1755400244665,-483.39301426,0.0002141,2]
[379757638,1755400244675,-1000.0,0.00021421,2]
[379757640,1755400244684,-480.0,0.00021453,2]
[379757642,1755400244694,-578.6,0.00021453,2]
[379757644,1755400244704,-1070.12,0.00021453,2]
[379757646,1755400244714,-567.07,0.00021453,2]
[379757648,1755400244723,-480.0,0.00021453,2]
[379757650,1755400244733,-794.18,0.00021453,2]
[379757652,1755400244742,-480.0,0.00021453,2]
[379757654,1755400244751,-480.0,0.00021453,2]
[379757656,1755400244761,-1672.29,0.00021453,2]
[379757658,1755400244771,-508.72,0.00021453,2]
[379757659,1755400244780,-1191.26,0.00021453,2]
[379757661,1755400244789,-480.0,0.00021453,2]
[379757664,1755400244799,-480.0,0.00021454,2]
[379757666,1755400244809,-480.0,0.00021454,2]
[379757668,1755400244818,-480.0,0.00021454,2]
[379757670,1755400244827,-480.0,0.00021454,2]
[379757671,1755400244837,-3668.11,0.00021454,2]
[379757673,1755400244846,-480.0,0.00021454,2]
[379757676,1755400244856,-480.0,0.00021454,2]
[379757678,1755400244867,-1013.33,0.00021454,2]
[379757680,1755400244876,-777.82,0.00021454,2]
[379757682,1755400244885,-480.0,0.00021454,2]
[379757684,1755400244895,-624.53,0.00021454,2]
[379757686,1755400244905,-480.0,0.00021454,2]
[379757688,1755400244915,-480.0,0.00021454,2]
[379757690,1755400244924,-480.0,0.00021454,2]
[379757692,1755400244933,-480.0,0.00021454,2]
[379757694,1755400244943,-480.0,0.00021454,2]
[379757696,1755400244952,-480.0,0.00021454,2]
[379757698,1755400244961,-573.43297769,0.00021454,2]
[379757700,1755400244971,-545.73,0.00021454,2]
[379757702,1755400244980,-480.0,0.00021454,2]
[379757704,1755400244989,-500.0,0.00021454,2]
[379757706,1755400244998,-480.0,0.00021454,2]
[379757707,1755400245007,-182.145647,0.00021469,10]
[379757709,1755400245017,-321.1,0.00021469,3]
[379757711,1755400245026,-182.145647,0.00021475,4]
[379757713,1755400245036,-159.026714,0.00021479,3]
[379757715,1755400245046,-168.0,0.0002148,2]
[379757718,1755400245059,-9441.53440697,0.000215,2]
[379757729,1755400245164,-3145.14609452,0.000215,2]
[379757732,1755400245174,-338.63,0.000215,2]
[379757734,1755400245184,-160.20600211,0.000215,2]
[379757738,1755400245221,-453.99,0.00020632,2]
[379757740,1755400245230,-40.37550686,0.000215,2]
[379757742,1755400245240,-151.0,0.000215,3]
[379757744,1755400245250,-152.670697,0.00021521,2]
[379757746,1755400245259,-168.0,0.00021536,2]
[379757748,1755400245268,-480.0,0.00021552,2]
[379757750,1755400245278,-480.0,0.00021552,2]
[379757752,1755400245287,-480.0,0.00021552,2]
[379757754,1755400245296,-480.0,0.00021552,2]
[379757756,1755400245305,-480.0,0.00021552,2]
[379757758,1755400245314,-196.76379614,0.00021552,2]
[379762234,1755400321299,418.94061261,0.000199,2]
[379762534,1755400487534,421.08902595,0.000199,2]
[379762550,1755400618599,2531.0,0.00028767,120]
[379762558,1755400657926,407.05272494,0.000199,2]
[379762573,1755400740930,1000.0,0.000198,2]
[379762576,1755400748022,1000.0,0.000198,3]
[379762578,1755400774615,1000.0,0.000198,4]
[379762579,1755400778880,1000.0,0.000198,5]
[379762584,1755400828136,393.48430093,0.000199,2]
[379762587,1755400875010,925.2879693,0.00019357,2]
[379762603,1755400998921,380.36815744,0.000199,2]
[379762619,1755401178503,166.512012,0.00019863,2]
[379762620,1755401178900,367.68921882,0.000199,2]
[379762660,1755401316162,165.442192,0.00013699,2]
[379762678,1755401354554,355.4329117,0.000199,2]
[379762680,1755401413983,168.0,0.00019699,2]
[379762718,1755401431926,-168.0,0.00020188,2]
[379762720,1755401431935,-228.94737224,0.00020256,2]
[379762722,1755401431945,-402.52577183,0.00020259,2]
[379762724,1755401431954,-1570.81266411,0.00020344,2]
[379762726,1755401431964,-1200.0,0.00020354,2]
[379762728,1755401431973,-256.96042522,0.00020355,2]
[379762750,1755401437956,-501.4963,0.00020355,2]
[379762751,1755401437968,-387.59327478,0.00020355,2]
[379762752,1755401437977,-36.19839453,0.00020355,2]
[379762753,1755401437989,-443.80160547,0.00020355,2]
[379762754,1755401437998,-480.0,0.00020355,2]
[379762755,1755401438008,-508.47,0.00020355,2]
[379762756,1755401438017,-940.4,0.00020355,2]
[379762757,1755401438026,-549.38,0.00020355,2]
[379762758,1755401438035,-480.0,0.00020355,2]
[379762759,1755401438045,-480.0,0.00020355,2]
[379762760,1755401438055,-1463.25,0.00020355,2]
[379762761,1755401438064,-480.0,0.00020355,2]
[379762762,1755401438073,-757.04,0.00020355,2]
[379762763,1755401438083,-480.0,0.00020355,2]
[379762764,1755401438092,-480.0,0.00020355,2]
[379762765,1755401438102,-480.0,0.00020355,2]
[379762766,1755401438111,-506.28885136,0.00020356,2]
[379762767,1755401438120,-480.0,0.00020356,2]
[379762768,1755401438130,-480.0,0.00020356,2]
[379762769,1755401438139,-480.0,0.00020356,2]
[379762770,1755401438148,-480.0,0.00020356,2]
[379762771,1755401438157,-480.0,0.00020356,2]
[379762772,1755401438166,-480.0,0.00020356,2]
[379762773,1755401438175,-480.0,0.00020356,2]
[379762774,1755401438185,-480.0,0.00020356,2]
[379762775,1755401438194,-480.0,0.00020356,2]
[379762776,1755401438204,-480.0,0.00020356,2]
[379762777,1755401438213,-480.0,0.00020356,2]
[379762778,1755401438224,-480.0,0.00020356,2]
[379762779,1755401438234,-626.1,0.00020356,2]
[379762780,1755401438243,-480.0,0.00020356,2]
[379762781,1755401438252,-480.0,0.00020356,2]
[379762782,1755401438262,-480.0,0.00020356,2]
[379762783,1755401438271,-480.0,0.00020356,2]
[379762784,1755401438280,-3037.82954317,0.00020356,2]
[379762785,1755401438396,-154.97045683,0.00020356,2]
[379762786,1755401438406,-932.72,0.00020356,2]
[379762787,1755401438416,-480.0,0.00020356,2]
[379762788,1755401438425,-444.49284326,0.00020356,2]
[379762789,1755401438435,-715.95,0.00020356,2]
[379762790,1755401438444,-480.0,0.00020356,2]
[379762791,1755401438453,-480.0,0.00020356,2]
[379762792,1755401438462,-480.0,0.00020356,2]
[379762793,1755401438471,-480.0,0.00020356,2]
[379762794,1755401438481,-480.0,0.00020356,2]
[379762795,1755401438490,-480.0,0.00020356,2]
[379762796,1755401438499,-502.24,0.00020356,2]
[379762797,1755401438508,-480.0,0.00020356,2]
[379762798,1755401438517,-500.0,0.00020356,2]
[379762799,1755401438526,-546.46,0.00020356,2]
[379762800,1755401438535,-138.8092188,0.00020356,2]
[379762801,1755401438547,-341.1907812,0.00020356,2]
[379762802,1755401438557,-480.0,0.00020356,2]
[379762803,1755401438566,-284.45702314,0.00020356,2]
[379763195,1755401445752,-480.0,0.00020355,2]
[379763197,1755401445762,-25.81048,0.00020355,2]
[379763214,1755401445921,-454.18952,0.00020355,2]
[379763216,1755401445931,-480.0,0.00020355,2]
[379763218,1755401445941,-1441.81370346,0.00020355,2]
[379763220,1755401445958,-581.18994283,0.00020355,2]
[379763475,1755401459441,161.0,0.0002,5]
[379763476,1755401524396,343.58514788,0.000199,2]
[379763477,1755401558271,1293.102737,0.0002,2]
[379763495,1755401704530,329.9851285,0.000199,2]
[379763506,1755401770181,500.0,0.00018834,2]
[379763512,1755401835341,1749.39881436,0.00019324,2]
[379763513,1755401835362,8250.60118564,0.00019324,2]
[379763519,1755401895634,250.0,0.00019914,2]
[379763520,1755401900537,335.99201382,0.000199,2]
[379763530,1755401952014,1501.53854613,0.00028767,120]
[379763541,1755402027878,168.0,0.00019717,2]
[379763542,1755402032979,168.0,0.000198,2]
[379763558,1755402079979,324.79227991,0.000199,2]
[379763574,1755402126442,166.512012,0.00019863,2]
[379763598,1755402327414,165.518148,0.00013699,2]
[379763623,1755402504460,2355.6500212,0.00019282,2]
[379763654,1755402632038,-168.0,0.00020056,2]
[379763657,1755402632049,-1108.0,0.00020125,2]
[379763659,1755402632060,-239.15414508,0.00020257,2]
[379763661,1755402632070,-1200.0,0.00020288,2]
[379763663,1755402632081,-1200.0,0.00020289,2]
[379763665,1755402632091,-208.0,0.00020289,2]
[379763667,1755402632102,-300.0,0.00020289,2]
[379763669,1755402632113,-480.79621738,0.00020289,2]
[379763671,1755402632123,-480.0,0.00020289,2]
[379763673,1755402632134,-482.07381709,0.0002029,2]
[379763676,1755402632144,-480.0,0.0002029,2]
[379763678,1755402632155,-442.25259576,0.0002029,2]
[379763680,1755402632165,-480.0,0.0002029,2]
[379763682,1755402632175,-480.0,0.0002029,2]
[379763684,1755402632185,-400.0,0.0002029,2]
[379763686,1755402632196,-480.0,0.0002029,2]
[379763688,1755402632206,-444.30524327,0.0002029,2]
[379763690,1755402632217,-482.27916544,0.0002029,2]
[379763693,1755402632227,-480.0,0.0002029,2]
[379763695,1755402632238,-480.0,0.0002029,2]
[379763697,1755402632248,-480.0,0.0002029,2]
[379763699,1755402632259,-480.0,0.0002029,2]
[379763701,1755402632269,-487.13881598,0.0002029,2]
[379763705,1755402632292,-907.37118402,0.0002029,2]
[379763707,1755402632303,-480.0,0.0002029,2]
[379763709,1755402632313,-327.9059211,0.0002029,2]
[379763711,1755402632323,-480.0,0.0002029,2]
[379763713,1755402632334,-480.0,0.0002029,2]
[379763715,1755402632345,-290.63492802,0.0002029,2]
[379763718,1755402632362,-209.36507198,0.0002029,2]
[379763720,1755402632374,-480.0,0.0002029,2]
[379763722,1755402632387,-480.0,0.0002029,2]
[379763724,1755402632400,-528.14,0.0002029,2]
[379763726,1755402632411,-480.0,0.0002029,2]
[379763729,1755402632423,-480.0,0.0002029,2]
[379763731,1755402632436,-486.61688021,0.0002029,2]
[379763733,1755402632447,-480.0,0.0002029,2]
[379763735,1755402632460,-480.0,0.0002029,2]
[379763737,1755402632471,-586.01,0.0002029,2]
[379763739,1755402632482,-757.64,0.0002029,2]
[379763742,1755402632493,-583.64,0.0002029,2]
[379763744,1755402632504,-480.0,0.0002029,2]
[379763746,1755402632515,-442.19281332,0.0002029,2]
[379763748,1755402632526,-764.0,0.0002029,2]
[379763750,1755402632536,-441.78061503,0.0002029,2]
[379763752,1755402632548,-480.0,0.0002029,2]
[379763754,1755402632558,-480.0,0.0002029,2]
[379763756,1755402632569,-480.0,0.0002029,2]
[379763759,1755402632579,-480.0,0.0002029,2]
[379763761,1755402632590,-480.0,0.0002029,2]
[379763763,1755402632600,-461.51965779,0.0002029,2]
[379763765,1755402632611,-480.0,0.0002029,2]
[379763767,1755402632623,-810.97,0.0002029,2]
[379763769,1755402632633,-480.0,0.0002029,2]
[379763771,1755402632643,-485.93804082,0.0002029,2]
[379763773,1755402632654,-480.0,0.0002029,2]
[379763776,1755402632664,-15450.28839615,0.0002029,2]
[379763778,1755402632674,-500.0,0.00020291,2]
[379763780,1755402632686,-486.00140024,0.00020291,2]
[379763782,1755402632697,-480.0,0.00020291,2]
[379763784,1755402632706,-487.74,0.00020291,2]
[379763786,1755402632715,-480.0,0.00020291,2]
[379763788,1755402632724,-622.7,0.00020291,2]
[379763790,1755402632734,-480.0,0.00020291,2]
[379763792,1755402632743,-491.46932585,0.00020291,2]
[379763794,1755402632752,-400.0,0.00020291,2]
[379763796,1755402632762,-1503.06685927,0.00020291,2]
[379763873,1755402638223,-522.57314073,0.00020291,2]
[379763874,1755402638234,-480.0,0.00020291,2]
[379763875,1755402638243,-480.0,0.00020291,2]
[379763876,1755402638253,-480.0,0.00020291,2]
[379763877,1755402638263,-480.0,0.00020291,2]
[379763878,1755402638272,-480.0,0.00020291,2]
[379763879,1755402638281,-480.0,0.00020291,2]
[379763880,1755402638291,-535.29,0.00020291,2]
[379763881,1755402638300,-239.15414505,0.00020293,2]
[379763882,1755402638309,-500.0,0.00020299,2]
[379763883,1755402638319,-500.0,0.00020299,2]
[379763884,1755402638328,-232.72804337,0.00020299,2]
[379763885,1755402638337,-206.7943117,0.00020299,2]
[379763886,1755402638347,-500.0,0.00020299,2]
[379763887,1755402638360,-500.0,0.00020299,2]
[379763888,1755402638370,-500.0,0.00020299,2]
[379763889,1755402638379,-627.42972998,0.00020299,2]
[379763890,1755402638389,-1582.35408595,0.000203,2]
[379763891,1755402638399,-17508.59030062,0.000203,2]
[379763892,1755402638408,-239.15414505,0.00020329,2]
[379763893,1755402638417,-180.63,0.00020346,3]
[379763894,1755402638426,-541.94,0.00020346,3]
[379763895,1755402638436,-361.27,0.00020347,3]
[379763896,1755402638446,-480.0,0.00020353,2]
[379763897,1755402638455,-480.0,0.00020353,2]
[379763898,1755402638464,-480.0,0.00020353,2]
[379763899,1755402638473,-512.04487785,0.00020353,2]
[379763900,1755402638483,-489.16884038,0.00020353,2]
[379763901,1755402638492,-480.0,0.00020353,2]
[379763902,1755402638502,-483.75217106,0.00020353,2]
[379763903,1755402638511,-610.92879495,0.00020353,2]
[379763904,1755402638521,-423.68802895,0.00020353,2]
[379763905,1755402638531,-299.30521901,0.00020353,2]
[379763906,1755402638540,-485.74651427,0.00020353,2]
[379763907,1755402638550,-480.0,0.00020353,2]
[379763908,1755402638560,-480.0,0.00020353,2]
[379763909,1755402638570,-480.0,0.00020353,2]
[379763910,1755402638579,-582.86,0.00020353,2]
[379763911,1755402638589,-480.0,0.00020353,2]
[379763912,1755402638598,-485.66630083,0.00020353,2]
[379763913,1755402638607,-484.78722076,0.00020353,2]
[379763914,1755402638616,-782.52,0.00020353,2]
[379763915,1755402638626,-480.0,0.00020353,2]
[379763916,1755402638636,-480.0,0.00020353,2]
[379763917,1755402638645,-480.0,0.00020353,2]
[379763918,1755402638654,-1336.74,0.00020353,2]
[379763919,1755402638663,-500.0,0.00020353,2]
[379763920,1755402638672,-480.0,0.00020353,2]
[379763921,1755402638681,-190.36962509,0.00020353,2]
[379763922,1755402638691,-480.0,0.00020353,2]
[379763923,1755402638700,-495.44137287,0.00020353,2]
[379763924,1755402638709,-480.0,0.00020353,2]
[379763925,1755402638718,-500.0,0.00020353,2]
[379763926,1755402638728,-486.16849058,0.00020353,2]
[379763927,1755402638738,-588.06876438,0.00020353,2]
[379763928,1755402638747,-480.0,0.00020353,2]
[379763929,1755402638756,-484.23225784,0.00020353,2]
[379763930,1755402638765,-480.0,0.00020353,2]
[379763931,1755402638775,-490.84689692,0.00020353,2]
[379763932,1755402638784,-480.0,0.00020353,2]
[379763933,1755402638794,-480.0,0.00020353,2]
[379763934,1755402638804,-481.63554784,0.00020354,2]
[379763935,1755402638813,-480.0,0.00020354,2]
[379763936,1755402638822,-718.52,0.00020354,2]
[379763937,1755402638832,-3832.03,0.00020354,2]
[379763938,1755402638841,-480.0,0.00020354,2]
[379763939,1755402638851,-500.0,0.00020354,2]
[379763940,1755402638859,-183.42577568,0.00020354,2]
[379763941,1755402638869,-601.65586863,0.00020354,2]
[379763942,1755402638878,-593.16471373,0.00020354,2]
[379763943,1755402638888,-480.0,0.00020354,2]
[379763944,1755402638897,-480.0,0.00020354,2]
[379763945,1755402638906,-556.45864798,0.00020354,2]
[379763946,1755402638916,-549.71,0.00020354,2]
[379763947,1755402638926,-480.0,0.00020355,2]
[379763948,1755402638936,-484.4744349,0.00020355,2]
[379763949,1755402638945,-484.4448172,0.00020355,2]
[379763951,1755402638954,-480.0,0.00020355,2]
[379763953,1755402638963,-624.61,0.00020355,2]
[379763955,1755402638972,-483.96655958,0.00020355,2]
[379763956,1755402638981,-483.39881447,0.00020355,2]
[379763957,1755402638991,-402.38877191,0.00020355,2]
[379763958,1755402639000,-480.0,0.00020355,2]
[379763959,1755402639010,-423.01626459,0.00020355,2]
[379763960,1755402639020,-480.0,0.00020355,2]
[379763961,1755402639030,-484.52635567,0.00020355,2]
[379763962,1755402639039,-483.52891486,0.00020355,2]
[379763963,1755402639049,-480.0,0.00020355,2]
[379763964,1755402639059,-282.80042433,0.00020355,2]
[379763965,1755402639068,-486.17568007,0.00020355,2]
[379763966,1755402639078,-480.0,0.00020355,2]
[379763967,1755402639087,-480.0,0.00020355,2]
[379763968,1755402639096,-485.18115333,0.00020355,2]
[379763970,1755402639105,-422.45326088,0.00020355,2]
[379763972,1755402639115,-480.0,0.00020355,2]
[379763974,1755402639125,-480.0,0.00020355,2]
[379763976,1755402639135,-485.4384008,0.00020355,2]
[379763978,1755402639145,-480.0,0.00020355,2]
[379763980,1755402639155,-480.0,0.00020355,2]
[379763981,1755402639165,-480.0,0.00020355,2]
[379763983,1755402639175,-484.11274446,0.00020355,2]
[379763986,1755402639184,-460.0,0.00020355,2]
[379763987,1755402639193,-481.98223568,0.00020355,2]
[379763989,1755402639202,-482.83590078,0.00020355,2]
[379763991,1755402639211,-283.96907723,0.00020355,2]
[379763993,1755402639220,-497.91806158,0.00020355,2]
[379763995,1755402639232,-492.59,0.00020355,2]
[379763997,1755402639241,-461.65063642,0.00020355,2]
[379763999,1755402639251,-480.0,0.00020355,2]
[379764001,1755402639260,-495.81452259,0.00020355,2]
[379764003,1755402639270,-480.0,0.00020355,2]
[379764005,1755402639279,-480.0,0.00020355,2]
[379764007,1755402639288,-480.0,0.00020355,2]
[379764009,1755402639298,-480.0,0.00020355,2]
[379764011,1755402639307,-480.0,0.00020355,2]
[379764013,1755402639316,-480.0,0.00020355,2]
[379764015,1755402639326,-480.0,0.00020355,2]
[379764017,1755402639335,-480.0,0.00020355,2]
[379764019,1755402639345,-480.0,0.00020355,2]
[379764021,1755402639359,-480.0,0.00020355,2]
[379764023,1755402639368,-480.0,0.00020355,2]
[379764025,1755402639378,-535.65,0.00020355,2]
[379764027,1755402639387,-560.76,0.00020355,2]
[379764029,1755402639396,-442.27161933,0.00020355,2]
[379764031,1755402639405,-480.0,0.00020355,2]
[379764033,1755402639415,-480.0,0.00020355,2]
[379764035,1755402639425,-486.87155603,0.00020355,2]
[379764037,1755402639434,-480.0,0.00020355,2]
[379764039,1755402639444,-480.0,0.00020355,2]
[379764041,1755402639453,-361.46542228,0.00020355,2]
[379764043,1755402639462,-480.0,0.00020355,2]
[379764045,1755402639472,-480.0,0.00020355,2]
[379764047,1755402639481,-487.42111243,0.00020355,2]
[379764050,1755402639490,-480.0,0.00020355,2]
[379764053,1755402639499,-480.0,0.00020355,2]
[379764055,1755402639509,-480.0,0.00020355,2]
[379764057,1755402639519,-480.0,0.00020355,2]
[379764059,1755402639528,-480.0,0.00020355,2]
[379764061,1755402639537,-403.14133038,0.00020355,2]
[379764063,1755402639547,-1811.52,0.00020355,2]
[379764065,1755402639556,-482.73934679,0.00020355,2]
[379764067,1755402639565,-480.0,0.00020355,2]
[379764069,1755402639576,-483.27449504,0.00020355,2]
[379764071,1755402639588,-480.0,0.00020355,2]
[379764073,1755402639597,-480.0,0.00020355,2]
[379764075,1755402639606,-480.0,0.00020355,2]
[379764077,1755402639615,-262.38,0.00020355,2]
[379764079,1755402639625,-480.0,0.00020355,2]
[379764081,1755402639635,-480.0,0.00020355,2]
[379764083,1755402639645,-504.61588804,0.00020355,2]
[379764085,1755402639654,-480.0,0.00020355,2]
[379764087,1755402639663,-480.0,0.00020355,2]
[379764089,1755402639674,-480.0,0.00020355,2]
[379764091,1755402639683,-570.68173824,0.00020355,2]
[379764093,1755402639692,-4322.46,0.00020355,2]
[379764095,1755402639702,-298.72429519,0.00020355,2]
[379764097,1755402639712,-480.0,0.00020355,2]
[379764099,1755402639721,-480.0,0.00020356,2]